bitfinex/quotes_ETHUSD_20260131
["timestamp","ask_amount","ask_price","bid_price","bid_amount"]
[1769886170413,1.05159175,2377.4,2376.1,1.05212964]
[1769886170724,0.01276188,2377.2,2376.1,1.05212964]
[1769886170921,4.20540209,2377.9,2376.1,1.05212964]
[1769886171122,0.01276188,2377.6,2376.1,1.05212964]
[1769886171323,1.05152471,2377.5,2376.1,1.05212964]
[1769886171627,1.06426592,2377.6,2376.1,1.05212964]
[1769886171822,0.001,2377.2,2376.1,1.05212964]
[1769886173398,0.001,2377.2,2375.6,4.20936866]
[1769886173599,1.05119891,2378.3,2376.0,13.42076876]
[1769886173794,0.01276188,2378.0,2376.0,13.40800688]
[1769886174429,4.21744589,2378.5,2376.3,13.51040688]
[1769886174430,0.01276188,2378.5,2376.3,13.51040688]
[1769886174615,1.063851,2378.5,2376.4,0.882]
[1769886174821,0.01276188,2378.1,2376.3,13.51040688]
[1769886175138,0.01276188,2377.7,2376.2,0.882]
[1769886175507,0.52681815,2378.4,2376.3,1.05205571]
[1769886175712,1.57797254,2378.4,2376.3,1.05205571]
[1769886175908,0.01276188,2378.0,2376.3,1.05205571]
[1769886176109,0.01276188,2377.9,2376.3,1.05205571]
[1769886176527,0.57952074,2378.3,2376.3,1.05205571]
[1769886176830,0.59228262,2378.3,2376.3,1.06481759]
[1769886177232,0.59228262,2378.3,2376.3,1.05205571]
[1769886177410,0.01276188,2377.4,2376.3,1.05205571]
[1769886177730,1.0512152,2378.2,2376.3,1.05205571]
[1769886177929,0.58355967,2378.1,2376.3,1.05205571]
[1769886178105,0.01276188,2377.9,2376.3,1.05205571]
[1769886178303,0.58355967,2378.1,2376.3,1.05205571]
[1769886178610,1.63069439,2378.3,2376.3,1.05205571]
[1769886179528,1.63069439,2378.3,2376.2,4.20822286]
[1769886179738,0.01276188,2378.0,2376.2,4.20822286]
[1769886180526,0.01276188,2377.5,2376.2,1.05209999]
[1769886180725,0.01276188,2377.5,2376.1,1.0521195]
[1769886180940,0.01276188,2377.1,2375.3,0.882]
[1769886181168,13.10847119,2377.9,2376.1,1.05213885]
[1769886181466,14.05781708,2377.0,2375.4,1.05245432]
[1769886181628,0.01276188,2376.6,2375.3,1.05247046]
[1769886181822,0.01276188,2376.2,2375.2,1.05251306]
[1769886182017,0.01276188,2376.2,2375.2,1.05254245]
[1769886182347,13.01883307,2376.6,2375.3,1.05248812]
[1769886182519,1.30188331,2376.5,2375.3,1.05248812]
[1769886182719,1.31464519,2376.5,2375.3,1.05248812]
[1769886183239,0.01276188,2376.5,2375.3,1.05248812]
[1769886183441,0.01276188,2376.5,2374.7,4.21100177]
[1769886183442,0.01276188,2376.5,2376.3,0.0011]
[1769886183646,0.01276188,2376.5,2374.7,4.21100177]
[1769886183647,0.01276188,2377.1,2374.8,13.52316876]
[1769886183946,13.00607119,2377.2,2374.9,13.65433906]
[1769886184153,0.1024,2377.7,2375.4,13.40800688]
[1769886184154,1.40577576,2377.1,2375.4,13.40800688]
[1769886184321,0.01276188,2377.3,2376.0,0.0011]
[1769886184951,1.05149497,2377.6,2376.0,0.0011]
[1769886185247,0.01276188,2377.3,2376.0,0.0011]
[1769886185451,1.05151062,2377.6,2376.0,0.0011]
[1769886185617,1.39904712,2377.8,2376.0,0.0011]
[1769886185945,0.01276188,2377.8,2376.0,0.0011]
[1769886186138,1.06400725,2378.2,2376.0,0.0011]
[1769886186323,4.20486081,2378.4,2376.3,0.01276188]
[1769886186324,1.0511268,2378.4,2376.3,0.01276188]
[1769886186526,0.53831066,2378.3,2376.0,0.1035]
[1769886186847,0.01276188,2377.9,2376.0,0.1035]
[1769886187049,0.53831066,2378.3,2376.0,0.1035]
[1769886187263,0.52554878,2378.3,2376.2,0.01276188]
[1769886187433,1.0512152,2378.2,2376.3,1.05205571]
[1769886187775,1.57674512,2378.3,2376.3,15.44829492]
[1769886187926,12.8130309,2378.0,2376.3,1.05205571]
[1769886188251,0.01276188,2377.6,2376.3,1.05205571]
[1769886188646,1.57674512,2378.3,2376.3,1.05205571]
[1769886188865,0.57812588,2378.2,2376.4,13.54923669]
[1769886189149,1.0510571,2378.6,2376.4,13.56199857]
[1769886189535,0.01276188,2378.4,2376.6,0.1024]
[1769886189737,0.01276188,2378.4,2376.5,1.05196717]
[1769886190336,4.20398717,2378.7,2376.5,1.05196717]
[1769886190647,0.01276188,2378.4,2376.5,1.05196717]
[1769886191043,12.8130309,2378.4,2376.5,1.05196717]
[1769886191449,0.01276188,2378.4,2376.5,1.05196717]
[1769886191776,1.06389809,2378.4,2376.5,0.1024]
[1769886191934,0.52682613,2378.3,2376.5,0.1024]
[1769886192535,1.05110159,2378.5,2376.5,0.11516188]
[1769886192857,0.882,2379.1,2377.0,13.44683669]
[1769886192858,0.01276188,2378.6,2377.0,13.44683669]
[1769886193029,1.05144929,2379.5,2376.4,4.20786871]
[1769886193030,0.01276188,2377.3,2376.4,4.20786871]
[1769886193355,13.68226902,2378.0,2376.4,1.05201144]
[1769886193557,13.68226902,2378.0,2376.0,4.20975378]
[1769886193558,13.85161684,2377.9,2376.0,4.20975378]
[1769886193752,12.80026902,2377.5,2376.0,0.0011]
[1769886193926,12.80026902,2377.5,2374.5,0.0008]
[1769886193927,12.80026902,2377.1,2375.1,0.0011]
[1769886194127,0.882,2377.0,2375.8,1.05226863]
[1769886194352,2.1620269,2377.0,2375.8,1.05226863]
[1769886194526,1.2800269,2377.0,2375.8,1.05227201]
[1769886194725,1.2800269,2377.0,2375.8,1.05225676]
[1769886194726,0.882,2376.9,2375.8,1.05225676]
[1769886194952,0.21960611,2377.4,2376.0,14.49902524]
[1769886195153,1.05099424,2378.7,2376.1,15.50821463]
[1769886195337,0.21954059,2378.6,2376.2,0.2335703]
[1769886195729,0.21954059,2378.6,2376.4,0.1024]
[1769886195931,14.07085359,2378.6,2376.4,0.1024]
[1769886196136,12.80026902,2378.4,2376.3,1.05205571]
[1769886196752,12.80026902,2378.1,2376.3,1.05205571]
[1769886196952,0.882,2378.0,2376.3,1.05205571]
[1769886197253,13.03383932,2377.7,2375.6,0.0011]
[1769886197457,0.882,2378.0,2375.6,0.0011]
[1769886197458,12.80026902,2377.2,2375.6,0.0011]
[1769886197645,12.80026902,2377.0,2375.6,0.0011]
[1769886197958,13.91583932,2376.9,2375.6,0.0011]
[1769886198138,13.68226902,2376.9,2375.6,0.0011]
[1769886198346,1.3682269,2376.8,2375.6,0.0011]
[1769886198546,0.2335703,2377.3,2375.6,0.0011]
[1769886198547,2.35487574,2377.6,2375.6,14.32993669]
[1769886198857,12.80026902,2377.9,2375.7,0.1024]
[1769886199478,12.80026902,2377.9,2375.8,0.01276188]
[1769886199629,1.05130361,2378.0,2376.0,1.05218855]
[1769886200030,0.61383499,2377.9,2376.0,1.05218855]
[1769886200341,0.61383499,2377.9,2376.0,1.06495043]
[1769886201031,0.61383499,2377.9,2376.1,0.01276188]
[1769886201241,1.93413368,2378.4,2376.3,0.01276188]
[1769886201460,1.93413368,2378.4,2376.1,0.01276188]
[1769886201641,5.08764783,2378.4,2376.3,1.05205571]
[1769886201840,1.051171,2378.3,2376.3,1.05205571]
[1769886202138,1.93415575,2378.4,2376.5,0.01276188]
[1769886202335,1.05215575,2378.4,2376.6,0.01276188]
[1769886202544,0.001,2378.4,2376.8,0.01276188]
[1769886202747,0.001,2378.4,2376.7,0.01276188]
[1769886203164,0.001,2378.4,2376.3,1.05205571]
[1769886203165,13.85240488,2378.4,2376.3,1.05205571]
[1769886203462,1.82904824,2378.3,2376.3,1.06481759]
[1769886203662,1.82904824,2378.3,2376.4,0.01276188]
[1769886203863,0.882,2378.2,2376.5,1.05196717]
[1769886204082,1.82904824,2378.3,2376.5,1.06472905]
[1769886204461,2.88022167,2378.3,2376.6,0.01276188]
[1769886204761,2.88022167,2378.3,2376.5,1.05196717]
[1769886204762,1.05117343,2378.3,2376.5,1.05196717]
[1769886204959,0.001,2378.4,2376.6,0.01276188]
[1769886205157,0.001,2378.4,2376.7,0.01276188]
[1769886205385,0.001,2378.4,2376.8,0.01276188]
[1769886205859,0.001,2378.4,2376.9,1.05179014]
[1769886206408,0.001,2378.4,2376.5,13.45959857]
[1769886206409,12.80026902,2378.2,2375.7,0.1024]
[1769886206565,0.001,2378.4,2376.6,1.05189121]
[1769886206566,14.98565295,2378.1,2376.6,1.05189121]
[1769886206873,14.98565295,2378.1,2376.2,1.05207358]
[1769886206874,13.03383932,2377.8,2376.2,1.05207358]
[1769886207076,13.03383932,2377.8,2376.0,4.20871733]
[1769886207287,13.68226902,2377.7,2376.2,1.05209879]
[1769886207585,13.68226902,2377.7,2375.6,1.05343559]
[1769886207586,12.80026902,2377.1,2375.6,1.05343559]
[1769886207884,13.85200652,2377.1,2375.6,0.0011]
[1769886208084,1.38520065,2377.0,2375.6,0.0011]
[1769886208288,12.80026902,2377.7,2375.6,0.0011]
[1769886208594,6.39218907,2379.2,2376.2,0.01276188]
[1769886208595,2.35467107,2378.1,2376.2,0.01276188]
[1769886208897,4.2031321,2379.2,2376.2,0.01276188]
[1769886208898,12.80106902,2379.5,2376.9,13.45959857]
[1769886209085,1.05144528,2379.5,2377.4,13.45959857]
[1769886209390,0.21967786,2378.9,2377.6,0.01276188]
[1769886209578,1.05145421,2379.5,2377.5,14.80683462]
[1769886209888,1.27114697,2379.5,2377.7,1.05143626]
[1769886210186,1.05145009,2379.5,2377.8,0.11516188]
[1769886210400,1.05145009,2379.5,2377.8,0.01276188]
[1769886210401,0.0008,2379.5,2377.8,0.01276188]
[1769886210562,0.0008,2379.5,2377.8,0.54230857]
[1769886210762,1.05145237,2379.5,2377.7,1.05143626]
[1769886210959,0.0008,2379.5,2377.7,1.05143626]
[1769886211260,0.0008,2379.5,2377.8,0.01276188]
[1769886211488,0.0008,2379.5,2377.7,1.05143626]
[1769886211489,13.85172066,2379.5,2377.7,1.05143626]
[1769886211688,1.80542842,2379.4,2377.7,1.05143626]
[1769886211994,1.0507292,2379.3,2377.7,1.05143626]
[1769886212660,0.2335703,2378.9,2377.3,1.05160994]
[1769886213074,0.2335703,2378.9,2377.1,4.20667377]
[1769886213075,13.03383932,2378.9,2377.1,4.20680224]
[1769886213277,12.80026902,2378.9,2377.4,4.20622849]
[1769886213486,1.30338393,2378.8,2377.5,1.05148261]
[1769886213859,1.38696454,2378.7,2376.3,4.22087513]
[1769886214096,14.18723356,2378.7,2377.0,1.05174365]
[1769886214326,13.48970156,2378.6,2377.2,1.05165484]
[1769886214469,0.2335703,2378.4,2376.9,1.05178504]
[1769886214804,0.2335703,2378.2,2376.6,1.05191393]
[1769886214972,13.03383932,2378.2,2376.5,1.05195388]
[1769886215164,14.42542325,2378.2,2376.5,1.05195367]
[1769886215363,14.42542325,2378.2,2375.9,0.0011]
[1769886215364,13.03383932,2377.8,2375.9,0.0011]
[1769886215582,12.80026902,2377.6,2375.9,0.0011]
[1769886215781,13.03383932,2377.5,2375.9,0.0011]
[1769886215982,1.93356894,2377.4,2375.9,0.0011]
[1769886216278,0.2335703,2377.3,2375.9,0.0011]
[1769886216474,13.03383932,2377.3,2375.9,0.0011]
[1769886216695,1.49674083,2377.2,2375.9,0.0011]
[1769886216892,1.05156894,2377.4,2375.9,0.0011]
[1769886217092,1.64959423,2377.7,2375.9,0.0011]
[1769886217093,1.31362393,2377.7,2375.9,0.0011]
[1769886217281,1.05130361,2378.0,2376.1,0.01276188]
[1769886217616,1.0511268,2378.4,2376.4,0.01276188]
[1769886217988,1.05110059,2378.5,2376.8,0.01276188]
[1769886218193,1.05081753,2379.1,2377.0,0.01276188]
[1769886218390,1.93281753,2379.1,2376.9,0.01276188]
[1769886218590,1.05068504,2379.4,2377.0,0.01276188]
[1769886218907,1.05068504,2379.4,2377.4,0.01276188]
[1769886218908,0.52540582,2379.3,2377.4,0.01276188]
[1769886219105,0.52540582,2379.3,2376.8,0.882]
[1769886219315,0.52540582,2379.3,2377.0,0.01276188]
[1769886219610,0.52540582,2379.3,2377.3,0.01276188]
[1769886219809,0.52540582,2379.3,2377.4,0.01276188]
[1769886220111,0.52540582,2379.3,2377.5,1.05152471]
[1769886220112,1.05077336,2379.2,2377.5,1.05152471]
[1769886220291,0.57792727,2379.1,2377.5,1.05152471]
[1769886221005,1.05068504,2379.4,2377.5,1.05152471]
[1769886221195,1.93346219,2379.5,2377.5,1.06428659]
[1769886221390,1.05146965,2379.5,2377.5,1.06428659]
[1769886221596,0.0008,2379.5,2378.0,0.01276188]
[1769886222122,0.0008,2379.5,2378.3,0.01276188]
[1769886222284,0.0008,2379.5,2378.5,0.01276188]
[1769886222485,0.0008,2379.5,2378.6,0.01276188]
[1769886222792,0.0008,2379.5,2378.5,0.01276188]
[1769886223012,0.0008,2379.5,2378.7,0.01276188]
[1769886223313,0.21964442,2379.9,2378.9,0.01276188]
[1769886223519,0.21964442,2379.9,2378.5,0.01276188]
[1769886223520,0.21964442,2379.9,2378.2,13.57119656]
[1769886223819,0.21964442,2379.9,2379.0,0.01276188]
[1769886223995,0.0008,2380.8,2379.6,0.01276188]
[1769886224197,0.0008,2381.1,2380.3,0.01276188]
[1769886224404,0.0008,2381.1,2380.2,0.01276188]
[1769886224606,1.0491418,2382.9,2380.6,0.01276188]
[1769886224815,1.0491418,2382.9,2380.7,0.01276188]
[1769886224991,0.21942121,2382.1,2381.0,0.01276188]
[1769886225187,13.84118405,2383.1,2381.0,0.01276188]
[1769886225188,4.19579739,2383.4,2381.2,0.01276188]
[1769886225516,0.21936968,2383.3,2381.6,0.01276188]
[1769886225726,1.04856975,2384.2,2382.1,0.01276188]
[1769886226022,14.06048432,2383.7,2381.7,1.0496704]
[1769886226231,13.84118405,2383.7,2381.7,1.0496704]
[1769886226396,13.84118405,2383.7,2381.6,1.04971031]
[1769886226732,15.54705197,2383.6,2381.7,0.52485682]
[1769886227133,0.1024,2383.4,2381.7,0.52485682]
[1769886227296,0.21934951,2383.6,2381.8,0.01276188]
[1769886227500,0.21934951,2383.6,2382.0,0.01276188]
[1769886227694,0.21934951,2383.6,2381.7,0.52485682]
[1769886227933,0.21934951,2383.6,2381.8,0.01276188]
[1769886228301,0.21934951,2383.6,2381.9,1.04958226]
[1769886228517,1.26818484,2383.6,2382.0,0.52606732]
[1769886228799,0.881,2384.8,2382.0,0.52606732]
[1769886228800,1.04826198,2384.9,2382.5,13.15329238]
[1769886229000,1.04826198,2384.9,2382.0,0.52606732]
[1769886229001,13.84118405,2384.7,2382.0,0.52606732]
[1769886229228,0.1024,2384.0,2382.0,0.52606732]
[1769886229399,1.39435841,2384.6,2382.0,0.52606732]
[1769886229400,14.07475435,2383.8,2382.0,0.52606732]
[1769886229724,14.07475435,2383.6,2381.2,1.04986884]
[1769886229902,14.07475435,2383.6,2380.5,4.20071114]
[1769886230097,14.07475435,2383.6,2381.3,1.04982234]
[1769886230312,14.07475435,2383.6,2380.8,4.20017367]
[1769886230313,14.07475435,2383.4,2380.6,0.01276188]
[1769886230516,14.07475435,2383.1,2380.6,0.4213473]
[1769886230721,13.84118405,2383.1,2380.6,0.4213473]
[1769886230933,0.881,2383.0,2380.6,0.4213473]
[1769886231097,0.881,2383.0,2380.7,0.46348203]
[1769886231655,2.45635313,2383.5,2380.8,13.26845426]
[1769886231869,1.9298777,2383.5,2381.0,13.16605426]
[1769886232152,1.9298777,2383.5,2381.1,0.89376188]
[1769886232350,1.9298777,2383.5,2381.2,1.04989081]
[1769886232550,1.9298777,2383.5,2381.1,5.08056324]
[1769886232551,0.2335703,2383.2,2381.3,0.61304541]
[1769886232755,13.84118405,2382.9,2380.7,0.46348203]
[1769886232958,14.07475435,2382.2,2379.6,0.881]
[1769886233104,14.07475435,2382.2,2379.4,3.6565169]
[1769886233105,0.2335703,2381.7,2379.4,3.6565169]
[1769886233311,14.17715435,2382.1,2379.4,3.6565169]
[1769886233531,14.17715435,2382.1,2379.5,0.36565169]
[1769886233942,14.17715435,2382.1,2379.4,3.6565169]
[1769886233943,14.17715435,2381.9,2379.4,3.6565169]
[1769886234230,14.17715435,2381.9,2378.5,0.01276188]
[1769886234534,14.17715435,2381.7,2378.6,4.21686575]
[1769886234734,14.17715435,2381.7,2378.5,1.05108209]
[1769886235208,14.17715435,2381.5,2378.5,1.05108209]
[1769886235534,14.17715435,2381.5,2378.5,1.05105687]
[1769886235709,14.17715435,2381.3,2378.5,1.05105687]
[1769886235906,14.17715435,2381.1,2378.6,0.52555325]
[1769886236322,13.94358405,2380.9,2378.6,0.52555325]
[1769886236615,0.4213,2379.7,2377.4,0.28584113]
[1769886236929,0.45649747,2380.9,2377.4,0.28584113]
[1769886236930,15.05815435,2379.6,2377.4,0.28584113]
[1769886237132,15.05815435,2379.6,2377.4,0.0011]
[1769886237306,14.17715435,2379.4,2377.4,0.0011]
[1769886238324,0.2335703,2379.1,2377.4,0.0011]
[1769886238632,14.07475435,2378.9,2377.4,0.0011]
[1769886239036,0.1024,2379.2,2377.4,0.0011]
[1769886239210,0.881,2379.2,2377.4,0.0011]
[1769886239530,0.6134646,2379.2,2377.4,0.0011]
[1769886239739,1.9316522,2379.5,2377.4,13.15439238]
[1769886239905,1.05064117,2379.5,2377.4,13.15439238]
[1769886240108,1.05064117,2379.5,2377.6,0.01276188]
[1769886240446,1.05064117,2379.5,2377.5,0.11516188]
[1769886240447,14.89182522,2379.5,2377.5,1.05151874]
[1769886240614,0.66922518,2379.4,2377.5,1.05151874]
[1769886240819,14.07475435,2379.3,2377.4,0.0011]
[1769886241017,1.47439795,2379.2,2377.5,1.05151687]
[1769886241218,0.66922518,2379.4,2377.5,1.05151687]
[1769886241420,4.76061059,2379.6,2378.0,13.16605426]
[1769886241421,0.55822244,2379.6,2378.0,13.16605426]
[1769886241605,0.55822244,2379.6,2378.1,1.31788161]
[1769886241809,0.55822244,2379.6,2378.3,0.01276188]
[1769886242037,1.6088207,2379.6,2378.1,14.47117399]
[1769886242342,0.55822244,2379.6,2378.1,14.47117399]
[1769886242540,0.55822244,2379.6,2378.3,1.051171]
[1769886243019,0.55822244,2379.6,2377.6,0.11516188]
[1769886243020,13.94358405,2379.5,2377.8,1.05138231]
[1769886243346,13.94358405,2379.5,2378.0,1.05130247]
[1769886243347,0.881,2379.4,2378.0,1.05130247]
[1769886243512,0.1024,2379.0,2377.4,0.0011]
[1769886243713,0.1024,2379.0,2377.5,1.05150567]
[1769886243918,1.52011543,2379.0,2377.6,1.05145529]
[1769886244236,1.52011543,2379.0,2377.8,1.05136694]
[1769886244455,1.05081753,2379.1,2377.4,0.0011]
[1769886244735,0.1024,2379.0,2377.4,0.0011]
[1769886244939,4.20327014,2379.2,2377.4,0.0011]
[1769886244940,1.05079566,2379.2,2377.4,0.0011]
[1769886245116,0.1024,2379.1,2377.4,0.0011]
[1769886245316,0.1024,2379.4,2377.4,0.01386188]
[1769886245750,0.55822244,2379.6,2377.9,0.01276188]
[1769886245917,0.55822244,2379.6,2378.1,0.01276188]
[1769886246413,0.55822244,2379.6,2378.3,1.051171]
[1769886246612,0.55822244,2379.6,2378.3,1.06393288]
[1769886246826,0.55822244,2379.6,2378.3,1.051171]
[1769886247236,1.60882501,2379.6,2378.2,1.05119237]
[1769886247539,1.60882501,2379.6,2377.6,1.0587723]
[1769886247540,13.71341599,2379.5,2377.8,4.20554277]
[1769886247733,1.5322241,2379.4,2378.2,1.05120264]
[1769886248117,0.1024,2379.5,2378.2,1.05120264]
[1769886248621,2.48984229,2379.6,2377.7,1.05143626]
[1769886248622,0.21943982,2379.4,2377.7,1.05143626]
[1769886248823,0.21943982,2379.4,2377.9,0.01276188]
[1769886249757,0.55822244,2379.6,2378.5,0.01276188]
[1769886249916,13.61101599,2380.8,2378.5,0.01276188]
[1769886249917,0.21939344,2380.2,2378.7,0.01276188]
[1769886250119,0.21939344,2380.2,2378.9,0.01276188]
[1769886250345,1.04984672,2381.3,2379.2,0.01276188]
[1769886250548,0.21937377,2380.7,2379.3,1.0507292]
[1769886250736,2.83096821,2381.2,2379.3,1.0507292]
[1769886251056,2.83096821,2381.2,2379.6,0.01276188]
[1769886251057,0.21932873,2381.1,2379.6,0.01276188]
[1769886251347,13.61101599,2382.0,2379.9,0.01276188]
[1769886251517,13.61101599,2382.0,2379.8,0.01276188]
[1769886251518,1.3582217,2381.9,2379.8,0.01276188]
[1769886251716,0.21930086,2381.6,2379.9,0.01276188]
[1769886251957,0.21930086,2381.6,2380.0,0.01276188]
[1769886252137,0.21930086,2381.6,2379.8,0.01276188]
[1769886252318,0.30863466,2381.9,2380.3,0.01276188]
[1769886252521,0.21925983,2382.3,2380.8,0.01276188]
[1769886252739,0.21925983,2382.3,2381.0,0.01276188]
[1769886252926,0.0008,2382.5,2381.2,0.01276188]
[1769886253230,0.0008,2382.5,2381.5,0.01276188]
[1769886253431,0.21920584,2383.0,2381.6,0.01276188]
[1769886253730,1.04874777,2383.8,2381.8,0.01276188]
[1769886254047,1.17922644,2384.0,2382.1,0.01276188]
[1769886254048,0.2191953,2383.5,2382.1,0.01276188]
[1769886254251,0.2191953,2383.5,2381.6,0.881]
[1769886254440,0.1024,2383.4,2381.6,0.881]
[1769886254648,0.1024,2383.2,2381.6,5.07968161]
[1769886254832,0.1024,2383.2,2380.9,13.67972811]
[1769886254833,13.61101599,2382.6,2380.6,2.43516805]
[1769886255030,0.1024,2382.5,2380.9,1.05000077]
[1769886255359,15.08475759,2382.5,2381.0,0.52501927]
[1769886255669,13.71341599,2382.3,2380.6,2.43516805]
[1769886255857,13.71341599,2382.3,2380.7,1.05010464]
[1769886256151,13.71341599,2382.3,2380.7,1.05010689]
[1769886256332,13.71341599,2382.3,2380.8,0.34852749]
[1769886256333,0.1024,2382.1,2380.8,0.34852749]
[1769886256527,1.0495382,2382.0,2380.8,0.34852749]
[1769886256841,0.1024,2381.9,2380.6,2.43516805]
[1769886257053,0.1024,2381.9,2380.6,3.4853226]
[1769886257455,1.0495382,2382.0,2380.7,1.05009454]
[1769886257630,0.1024,2381.9,2380.6,2.43516805]
[1769886257835,13.71341599,2381.9,2380.6,2.67868486]
[1769886258642,1.0496704,2381.7,2380.6,2.43516805]
[1769886258960,14.66068639,2381.7,2380.6,2.43516805]
[1769886259161,14.66068639,2381.7,2379.0,4.21611378]
[1769886259162,13.61101599,2381.0,2379.4,1.05066192]
[1769886259466,1.9306704,2381.7,2379.0,0.97700851]
[1769886259467,13.84458629,2380.8,2379.0,0.97700851]
[1769886259765,1.9306704,2381.7,2378.2,0.881]
[1769886259766,13.84458629,2380.6,2378.2,1.05117803]
[1769886259937,13.84458629,2380.6,2378.2,1.0512143]
[1769886260137,13.84458629,2380.6,2378.0,1.05128315]
[1769886260335,13.84458629,2380.6,2377.6,0.0011]
[1769886260336,0.48602885,2380.5,2377.6,0.0011]
[1769886260570,13.61101599,2380.0,2377.6,0.0011]
[1769886260773,13.61101599,2378.7,2377.0,0.45371269]
[1769886260973,0.2335703,2378.5,2377.0,1.05173991]
[1769886261276,0.2335703,2378.5,2376.9,0.0011]
[1769886261277,0.2335703,2378.5,2376.9,1.05288607]
[1769886261450,1.05037603,2380.1,2377.1,0.01276188]
[1769886261451,13.61101599,2379.2,2377.1,0.01276188]
[1769886261637,14.49201599,2379.7,2377.1,13.66696623]
[1769886261837,14.66139202,2380.1,2377.2,1.47314564]
[1769886262039,0.2335703,2379.7,2377.3,0.01276188]
[1769886262238,0.2335703,2379.7,2377.4,0.01276188]
[1769886262440,0.2335703,2379.7,2377.2,1.48590752]
[1769886262441,13.84458629,2379.5,2377.2,1.47314564]
[1769886262641,0.3359703,2379.1,2377.0,1.05172831]
[1769886262968,0.1024,2378.9,2377.0,1.05172831]
[1769886263190,13.84458629,2378.6,2376.9,0.0011]
[1769886263467,0.2335703,2378.8,2376.9,1.05287929]
[1769886263468,0.1024,2378.4,2376.9,1.05287929]
[1769886263641,0.881,2378.8,2376.9,1.05287929]
[1769886263840,0.881,2378.8,2376.9,1.06564117]
[1769886264058,1.05055259,2379.7,2377.3,0.01276188]
[1769886264242,0.1024,2379.4,2377.3,0.01276188]
[1769886264447,0.1024,2379.4,2377.0,13.66696623]
[1769886264759,0.1024,2379.2,2377.2,1.05165741]
[1769886265652,0.2335703,2379.1,2377.2,1.05165741]
[1769886265841,1.0507292,2379.3,2377.2,1.05165741]
[1769886266175,1.05042016,2380.0,2377.4,13.67972811]
[1769886266470,15.54243615,2380.0,2377.4,0.881]
[1769886266671,15.54243615,2380.0,2377.5,1.05152471]
[1769886266871,13.61101599,2379.8,2377.2,1.05165071]
[1769886267082,13.61101599,2379.3,2377.4,1.05154336]
[1769886267281,1.9744034,2379.9,2376.9,0.0011]
[1769886267282,13.84458629,2379.2,2376.9,0.0011]
[1769886267488,13.61101599,2379.0,2377.4,1.05156052]
[1769886267667,0.881,2378.9,2377.4,1.05156052]
[1769886268689,0.881,2378.9,2377.3,4.20644487]
[1769886268993,0.881,2378.9,2377.4,0.01276188]
[1769886269191,0.881,2378.9,2377.3,4.21920675]
[1769886269389,1.93192496,2378.9,2377.4,0.84382444]
[1769886269690,1.93192496,2378.9,2377.2,4.20627576]
[1769886270590,4.20349411,2379.0,2377.2,4.20627576]
[1769886270591,13.61181599,2380.3,2377.8,0.01276188]
[1769886270779,0.0008,2380.3,2378.4,0.01276188]
[1769886270965,0.0008,2380.3,2378.5,13.67972811]
[1769886271174,1.05109546,2380.3,2378.5,13.66696623]
[1769886271395,1.0500231,2380.9,2378.8,13.66696623]
[1769886271689,1.0500231,2380.9,2378.1,1.0512594]
[1769886271690,13.61101599,2380.5,2378.1,1.0512594]
[1769886271861,13.71341599,2380.3,2378.1,1.0512594]
[1769886272077,0.1024,2380.1,2378.1,1.0512594]
[1769886272278,1.5618416,2380.1,2378.2,0.5256297]
[1769886272883,1.05042016,2380.0,2378.3,1.051171]
[1769886273610,1.0503986,2380.1,2378.3,1.051171]
[1769886273786,5.08232988,2380.2,2378.3,1.051171]
[1769886273787,0.881,2380.2,2378.3,14.73089911]
[1769886274107,1.93133942,2380.2,2378.4,13.66696623]
[1769886274299,1.93133942,2380.2,2378.5,1.47308991]
[1769886274481,0.881,2380.2,2378.5,1.47308991]
[1769886274877,0.881,2380.2,2378.6,1.05103842]
[1769886276310,0.881,2380.2,2378.6,14.71800465]
[1769886276492,0.881,2380.2,2378.7,15.70649106]
[1769886276898,1.93133763,2380.2,2378.6,1.05103842]
[1769886277101,0.001,2380.6,2379.1,0.01276188]
[1769886277299,1.05115577,2380.6,2378.6,14.60150848]
[1769886278518,1.0499349,2381.1,2378.8,12.66947006]
[1769886278681,1.0499349,2381.1,2378.7,0.1024]
[1769886278888,0.52495881,2381.0,2378.7,13.41104353]
[1769886279218,0.52495881,2381.0,2378.8,13.72042011]
[1769886279219,1.0500231,2380.9,2378.8,13.72042011]
[1769886279777,1.0500231,2380.9,2378.8,13.73318199]
[1769886280016,1.05000545,2381.0,2379.0,12.66947006]
[1769886280207,0.52497625,2380.9,2379.1,1.26822319]
[1769886280514,0.1024,2381.5,2379.1,1.26822319]
[1769886280515,12.69955378,2382.6,2380.1,12.66947006]
[1769886280826,1.05050126,2382.1,2380.1,12.66947006]
[1769886281226,1.05050126,2382.1,2380.2,1.0503319]
[1769886281227,0.001,2382.1,2380.2,1.0503319]
[1769886282529,0.001,2382.1,2380.4,0.01276188]
[1769886282734,0.001,2382.1,2380.5,13.05654116]
[1769886283026,0.001,2382.1,2380.8,13.05654116]
[1769886283228,0.001,2382.1,2380.9,1.0500231]
[1769886283930,0.001,2382.1,2380.9,1.06278498]
[1769886284128,0.001,2382.1,2380.9,1.0500231]
[1769886284305,0.001,2382.1,2381.0,1.82938948]
[1769886284630,0.001,2382.1,2380.9,1.0500231]
[1769886285219,0.001,2382.1,2380.8,17.25663356]
[1769886285418,0.001,2382.1,2380.7,4.2000924]
[1769886286832,0.001,2382.1,2380.0,0.881]
[1769886287019,0.001,2382.1,2380.6,1.05012905]
[1769886287333,1.05049414,2382.1,2380.7,1.57519973]
[1769886287499,0.001,2382.1,2380.7,1.57519973]
[1769886290961,13.96018369,2382.1,2380.7,0.52509133]
[1769886291113,13.96018369,2382.1,2380.7,1.05010124]
[1769886291442,0.001,2382.1,2380.7,1.05010124]
[1769886291811,0.001,2382.1,2380.6,4.20044524]
[1769886292532,0.001,2382.1,2380.5,4.20044524]
[1769886292714,0.001,2382.1,2380.6,2.14574316]
[1769886293837,0.001,2382.1,2380.7,1.05011131]
[1769886296634,0.001,2382.1,2380.3,1.05028777]
[1769886296806,13.96018369,2382.1,2380.3,1.05028777]
[1769886297017,15.35520206,2382.0,2380.4,0.52514389]
[1769886297416,0.001,2382.1,2380.4,0.52514389]
[1769886297721,0.001,2382.1,2380.8,0.0011]
[1769886298255,0.001,2381.9,2380.8,0.0011]
[1769886300717,13.96018369,2381.9,2380.8,0.0011]
[1769886301352,13.96018369,2381.9,2379.7,2.6383433]
[1769886301353,0.1024,2381.8,2379.7,2.6383433]
[1769886301664,13.95918369,2380.9,2379.7,2.6383433]
[1769886301954,13.95918369,2381.2,2380.0,1.05038952]
[1769886302164,13.95918369,2381.2,2379.6,4.20222843]
[1769886302325,13.95918369,2381.2,2379.2,4.20300483]
[1769886302326,0.1024,2381.6,2379.2,17.24678411]
[1769886302531,13.95918369,2381.7,2380.2,1.05030677]
[1769886302732,1.04971447,2381.6,2379.7,4.20214101]